[Event "55th Biel Festival MTO 2022"]
[Site "Biel"]
[Date "2022.07.20"]
[Round "7.17"]
[White "Haimovich, Tal"]
[Black "Azarov Sergei"]
[Result "1/2-1/2"]
[ECO "B30"]
[WhiteElo "2372"]
[BlackElo "2566"]
[Annotator "TA"]
[PlyCount "76"]
[EventDate "2022.07.13"]
[EventType "swiss"]
[EventCountry "SUI"]
[SourceTitle "playchess.com"]
[Source "ChessBase"]
[SourceQuality "1"]
[TimeControl "40/5400+30:1800+30"]

{[%evp 18,76,31,25,31,26,21,25,23,16,14,0,0,-7,0,0,0,0,0,0,6,0,0,0,0,0,0,0,6,0,8,2,12,0,8,0,0,0,0,0,0,0,0,0,0,0,0,0,0,0,0,0,0,0,0,0,0,0,0,0,0]} 1. e4 {[%emt 0:00:04]} c5 {[%emt 0:00:19]} 2. Nf3 {[%emt 0:00:11][%cal Bg1f3,Bf3d2,Bd2f1,Bf1e3][%mdl 32]} Nc6 {[%emt 0:00:11]} 3. Nc3 {[%emt 0:01:59]} e5 {[%emt 0:01:00]} 4. Bc4 {[%emt 0:00:24]} d6 {[%emt 0:00:45]} 5. d3 {[%emt 0:00:27]} Be7 {[%emt 0:00:33]} 6. Nd2 {[%emt 0:05:02]} Nf6 {[%emt 0:01:31]} 7. Nf1 {[%emt 0:01:33]} Bg4 {[%emt 0:00:40]} 8. f3 {[%emt 0:02:39]} Be6 {[%emt 0:00:19]} 9. Ne3 {[%emt 0:02:04]} O-O {[%emt 0:00:38]} 10. O-O {[%emt 0:01:51]} Nb4 {[%emt 0:00:55] B30: Sicilian: 2...Nc6 3 Bb5, lines without ...g6.} 11. a3 {[%emt 0:03:51]} d5 {[%emt 0:03:42] [#]} 12. exd5 $146 {[%emt 0:10:52]} (12. Bb3 {with more complications.} c4 13. dxc4 dxc4 14. Ba4) ({Predecessor:} 12. Bb3 c4 13. dxc4 dxc4 14. Ba4 Na6 15. Qe2 Rc8 16. Bb5 Qc7 17. Rd1 Nb8 18. Ncd5 Bxd5 19. exd5 {1-0 (67) Sevian,S (2666)-Nihal,S (2598) Chess.com INT 2019}) 12... Nbxd5 {[%emt 0:00:17] White has an edge.} 13. Nexd5 {[%emt 0:02:47]} Nxd5 {[%emt 0:00:19] The position is equal.} 14. Nxd5 {[%emt 0:00:31]} Bxd5 {[%emt 0:00:06]} 15. Be3 {[%emt 0:01:18]} Qd7 {[%emt 0:22:29]} 16. Bxd5 {[%emt 0:12:09]} Qxd5 {[%emt 0:00:06]} 17. Qe2 {[%emt 0:00:06]} Rfe8 {[%emt 0:01:32][%cal Bf8e8,Be8e6,Be6c6][%mdl 32]} 18. a4 {[%emt 0:07:38]} Bf8 {[%emt 0:03:41]} 19. Bf2 {[%emt 0:04:41]} f5 {[%emt 0:04:23]} 20. Rfe1 {[%emt 0:00:28]} Re6 {[%emt 0:00:36]} 21. a5 {[%emt 0:04:07]} Rae8 {[%emt 0:00:40]} 22. b3 {[%emt 0:05:12]} h5 {[%emt 0:07:17]} 23. Ra4 {[%emt 0:01:32]} g6 {[%emt 0:00:41]} 24. Qe3 {[%emt 0:05:45]} Kh7 {[%emt 0:03:35]} 25. Kf1 {[%emt 0:01:18]} Rc6 {[%emt 0:02:48]} 26. Qd2 {[%emt 0:02:33]} Bg7 {[%emt 0:01:09]} 27. Rc4 {[%emt 0:02:27]} b5 {[%emt 0:01:43]} 28. axb6 $1 {[%emt 0:00:17]} axb6 {[%emt 0:00:04]} 29. b4 {[%emt 0:02:11]} cxb4 {[%emt 0:01:29]} 30. Qxb4 {[%emt 0:00:38]} Rec8 {[%emt 0:07:09][%cal Rc6c4]} 31. Rxc6 {[%emt 0:01:37]} Rxc6 {[%emt 0:00:06]} 32. Re2 {[%emt 0:03:58]} b5 {[%emt 0:01:21]} 33. Be1 {[%emt 0:03:06]} Rc5 {[%emt 0:10:24]} 34. Qa3 {[%emt 0:01:35]} Rc7 {[%emt 0:01:56]} 35. Qa5 {[%emt 0:01:48]} Qd7 {[%emt 0:03:26]} 36. Qb4 {[%emt 0:02:42]} Qd5 {[%emt 0:03:28]} 37. Qa5 {[%emt 0:00:42]} Qd7 {[%emt 0:04:05]} 38. Qb4 {[%emt 0:00:24]} Qd5 {[%emt 0:00:19] An uneventful encounter.  Weighted Error Value: White=0.03 (flawless) /Black=0.02 (flawless)} 1/2-1/2

[Event "55th Biel Festival MTO 2022"]
[Site "Biel"]
[Date "2022.07.20"]
[Round "7.18"]
[White "Gagare Shardul"]
[Black "Materia, Marco"]
[Result "1/2-1/2"]
[ECO "A09"]
[WhiteElo "2514"]
[BlackElo "2409"]
[Annotator "TA"]
[PlyCount "62"]
[EventDate "2022.07.13"]
[EventType "swiss"]
[EventCountry "SUI"]
[SourceTitle "playchess.com"]
[Source "ChessBase"]
[SourceQuality "1"]
[TimeControl "40/5400+30:1800+30"]

{[%evp 11,62,-22,0,0,42,45,54,39,55,55,42,54,47,48,55,48,62,26,10,28,45,43,50,4,15,7,8,8,9,0,0,0,0,-12,-11,-35,-22,-24,-27,-30,-7,-6,-11,-2,0,0,0,0,14,0,0,0,7]} 1. Nf3 {[%emt 0:06:11]} d5 {[%emt 0:00:02]} 2. c4 {[%emt 0:00:22]} d4 {[%emt 0:00:06]} 3. g3 {[%emt 0:01:09]} Nc6 {[%emt 0:02:56]} 4. Bg2 {[%emt 0:00:14]} e5 {[%emt 0:01:00]} 5. d3 {[%emt 0:00:29]} Nf6 {[%emt 0:04:05]} 6. O-O {[%emt 0:00:18]} a5 {[%emt 0:01:42]} 7. e3 {[%emt 0:01:11] 7.Na3 is the modern continuation. A09: Réti Opening: 1 Nf3 d5 2 c4.} Be7 {[%emt 0:01:53]} 8. exd4 {[%emt 0:04:11]} exd4 {[%emt 0:00:18]} 9. Na3 {[%emt 0:02:33] White is slightly better.} O-O {[%emt 0:12:20]} 10. Nb5 {[%emt 0:04:20]} Bf5 {[%emt 0:05:13]} 11. Bf4 {[%emt 0:02:16]} Rc8 {[%emt 0:02:24]} 12. Ne5 {[%emt 0:03:03]} Nxe5 {[%emt 0:02:26]} 13. Bxe5 {[%emt 0:04:41]} Nd7 {[%emt 0:03:08]} 14. Bxd4 {[%emt 0:16:31] White is more active.} c6 {[%emt 0:02:07]} 15. Nc3 {[%emt 0:00:44] [#]} Nc5 $146 {[%emt 0:04:37]} ({Predecessor:} 15... Nf6 16. Bxf6 Bxf6 17. Be4 Be6 18. Ne2 Bg4 19. Qc2 Qd6 20. Nc3 Rcd8 {½-½ (20) Zontakh,A (2570)-Zhigalko,S (2505) Saratov 2006}) 16. Bxc5 {[%emt 0:00:22]} Bxc5 {[%emt 0:00:04]} 17. Ne4 {[%emt 0:04:00]} (17. Be4 $14 {was preferrable.} Bxe4 18. dxe4 (18. Nxe4 Bd4 $14)) 17... Bd4 $11 {[%emt 0:07:09]} 18. Rb1 {[%emt 0:06:14]} Qe7 {[%emt 0:08:41]} 19. Qd2 {[%emt 0:04:00]} Ra8 {[%emt 0:04:05]} 20. Kh1 {[%emt 0:08:01]} Rfd8 {[%emt 0:01:32][%cal Bf8d8,Bd8d7,Bd7d4][%mdl 32]} 21. f4 {[%emt 0:03:48]} h5 {[%emt 0:06:17]} 22. h3 {[%emt 0:08:59]} g6 {[%emt 0:04:07][%mdl 1024] Black has compensation.} 23. Qe2 {[%emt 0:02:13]} Rd7 {[%emt 0:05:42]} 24. Kh2 {[%emt 0:00:38]} Rad8 {[%emt 0:00:57]} 25. b3 {[%emt 0:06:39]} Bg7 {[%emt 0:05:06] A strong pair of Bishops.} 26. Rbd1 $1 {[%emt 0:02:13] The position is equal.} Rd4 {[%emt 0:00:44]} 27. Rfe1 {[%emt 0:03:06]} Qc7 {[%emt 0:02:40][%cal Oh5h4]} 28. h4 {[%emt 0:01:01]} Bg4 {[%emt 0:02:16]} 29. Bf3 {[%emt 0:00:30]} Bf5 {[%emt 0:00:06]} 30. Bg2 {[%emt 0:00:38]} Bg4 {[%emt 0:02:13]} 31. Bf3 {[%emt 0:00:05]} Bf5 {[%emt 0:02:13] Weighted Error Value: White=0.06 (flawless) /Black=0.07 (flawless)} 1/2-1/2

[Event "55th Biel Festival MTO 2022"]
[Site "Biel"]
[Date "2022.07.20"]
[Round "7.19"]
[White "Tanmay Chopra"]
[Black "Rathanvel V S"]
[Result "1/2-1/2"]
[ECO "B96"]
[WhiteElo "2322"]
[BlackElo "2478"]
[Annotator "TA"]
[PlyCount "51"]
[EventDate "2022.07.13"]
[EventType "swiss"]
[EventCountry "SUI"]
[SourceTitle "playchess.com"]
[Source "ChessBase"]
[SourceQuality "1"]
[TimeControl "40/5400+30:1800+30"]

{[%evp 17,51,58,68,3,12,0,34,35,33,65,67,8,10,35,78,87,79,85,84,64,77,54,76,77,75,0,74,73,77,42,42,27,49,-40,-31,-27]} 1. e4 {[%emt 0:02:12]} c5 {[%emt 0:00:17]} 2. Nf3 {[%emt 0:00:04]} d6 {[%emt 0:00:14]} 3. d4 {[%emt 0:00:08]} cxd4 {[%emt 0:00:08]} 4. Nxd4 {[%emt 0:00:03]} Nf6 {[%emt 0:00:10]} 5. Nc3 {[%emt 0:00:04]} a6 {[%emt 0:00:06]} 6. Bg5 {[%emt 0:00:32]} e6 {[%emt 0:00:09]} 7. f4 {[%emt 0:00:12]} Qc7 {[%emt 0:02:23]} 8. Bxf6 {[%emt 0:00:22]} gxf6 {[%emt 0:00:19]} 9. Qf3 $1 {[%emt 0:00:50][%mdl 4] is now more promising than 9.Qd2.} b5 {[%emt 0:00:13][%cal Bb7b5,Bb5b4][%mdl 32]} 10. O-O-O {[%emt 0:10:58] White is more active. B96: Sicilian Najdorf: 6 Bg5 e6 7 f4, lines other than 7...Qb6 and 7...Be7.} (10. a3 $14) 10... b4 $1 $11 {[%emt 0:10:28]} 11. Nce2 {[%emt 0:20:42][%cal Bc3e2,Be2g3,Bg3h5][%mdl 32]} ({But not} 11. Nd5 exd5 12. exd5 Kd8 $15) 11... h5 {[%emt 0:44:34]} 12. Ng3 {[%emt 0:08:38] [#] White is slightly better.} Bb7 $146 {[%emt 0:01:30]} ({Predecessor:} 12... h4 13. Nh5 Nd7 14. g4 Bb7 15. Qe2 O-O-O 16. h3 Kb8 17. Kb1 Rc8 18. Rh2 Be7 {1-0 (45) Shirov,A (2730)-Papaioannou,I (2628) Novi Sad 2009}) 13. Nxh5 {[%emt 0:10:04]} Nd7 {[%emt 0:00:24]} 14. g4 {[%emt 0:07:50]} (14. Kb1 $14) 14... O-O-O $1 {[%emt 0:03:11]} 15. Bg2 {[%emt 0:07:48]} Nc5 {[%emt 0:01:16]} 16. Qe2 {[%emt 0:00:36]} ({Reject} 16. Nxf6 Be7 17. Nh5 Nxe4 $11) 16... Be7 {[%emt 0:06:10]} 17. Kb1 $36 {[%emt 0:01:09][%mdl 2048] White is in control.} a5 {[%emt 0:02:39]} 18. Rhe1 {[%emt 0:10:33]} Kb8 {[%emt 0:17:24]} 19. h3 {[%emt 0:02:55]} Ba6 {[%emt 0:02:50] Prevents Qb5+.} 20. Qe3 {[%emt 0:00:11] Threatens to win with e5.} Bb7 {[%emt 0:00:36][%cal Of6f5]} 21. Qe2 {[%emt 0:09:05]} Ba6 {[%emt 0:00:07] Inhibits Qb5+.} 22. Qf2 {[%emt 0:00:41][%cal Oe4e5]} Bb7 {[%emt 0:00:01]} 23. f5 {[%emt 0:04:30] aiming for fxe6.} e5 {[%emt 0:00:49]} 24. Nb3 {[%emt 0:01:26]} (24. Nb5 $5 {[%cal Rb5c7]} Qb6 25. c4 $16) 24... a4 {[%emt 0:00:11][%cal Ba5a4,Ba4a3][%mdl 32]} 25. Nd2 {[%emt 0:00:40]} (25. Nc1 $1 $14) 25... a3 $15 {[%emt 0:00:09][%mdl 1024] [#] ...Na4 is the strong threat. Black has compensation.} 26. b3 {[%emt 0:00:40] Prevents Na4.  Weighted Error Value: White=0.30/Black=0.05 (flawless)} 1/2-1/2

[Event "55th Biel Festival MTO 2022"]
[Site "Biel"]
[Date "2022.07.20"]
[Round "7.20"]
[White "Raja Harshit"]
[Black "Ajay Krishna, S."]
[Result "1-0"]
[ECO "B96"]
[WhiteElo "2477"]
[BlackElo "2372"]
[Annotator "TA"]
[PlyCount "83"]
[EventDate "2022.07.13"]
[EventType "swiss"]
[EventCountry "SUI"]
[SourceTitle "playchess.com"]
[Source "ChessBase"]
[SourceQuality "1"]
[TimeControl "40/5400+30:1800+30"]

{[%evp 13,83,14,58,29,25,26,35,0,4,0,54,43,49,50,105,83,98,29,33,20,21,56,37,42,128,90,87,21,129,120,242,107,132,132,156,171,164,169,222,218,227,202,291,289,326,331,299,327,319,309,517,514,552,555,840,805,821,833,741,675,852,831,818,804,1275,1253,12835,12835,12834,9404,5693,1635]} 1. e4 {[%emt 0:00:10]} c5 {[%emt 0:00:11]} 2. Nf3 {[%emt 0:00:26]} d6 {[%emt 0:00:08]} 3. d4 {[%emt 0:00:13]} cxd4 {[%emt 0:00:07]} 4. Nxd4 {[%emt 0:00:06]} Nf6 {[%emt 0:00:11]} 5. Nc3 {[%emt 0:00:06]} a6 {[%emt 0:00:10]} 6. Bg5 {[%emt 0:00:20]} e6 {[%emt 0:00:37]} 7. f4 {[%emt 0:03:13]} Qc7 {[%emt 0:00:12]} 8. Qe2 {[%emt 0:04:09] 8.Bxf6 is the modern continuation. B96: Sicilian Najdorf: 6 Bg5 e6 7 f4, lines other than 7...Qb6 and 7...Be7.} (8. Bxf6 $5 gxf6 9. g3 $14) 8... b5 {[%emt 0:00:26]} 9. a3 {[%emt 0:02:46]} Nbd7 {[%emt 0:01:24] [#]} 10. g3 $146 {[%emt 0:03:10] White is slightly better.} ({Predecessor:} 10. O-O-O Be7 11. g4 Bb7 12. Bh4 h6 13. Kb1 Rc8 14. Rg1 g5 15. fxg5 Nh7 16. g6 Bxh4 17. gxf7+ {1-0 (29) Eliseev,U (2548)-Sjugirov,S (2646) Khanty-Mansiysk 2015}) 10... Be7 {[%emt 0:06:03]} 11. Bg2 {[%emt 0:01:40][%cal Oe4e5] Strongly threatening e5!} Rb8 {[%emt 0:02:17]} ({Better is} 11... Bb7 $11) 12. e5 $1 $14 {[%emt 0:03:58]} dxe5 {[%emt 0:05:07]} 13. Nc6 {[%emt 0:00:51][%cal Rf4e5]} Rb6 {[%emt 0:00:15]} (13... h6 $14) 14. Nxe7 $16 {[%emt 0:02:31] White is much more active. The black rooks are badly placed.} (14. Nxe5 $6 O-O $11) (14. fxe5 Rxc6 15. exf6 Rxc3 16. bxc3 Qxc3+ 17. Kf2 Bc5+ 18. Be3 Nxf6 19. Bc6+ Bd7 20. Bxd7+ Kxd7 21. Bxc5 Qxc5+ 22. Kg2 Ke7 $17) 14... Kxe7 {[%emt 0:02:49]} 15. O-O-O {[%emt 0:04:01]} ({White should try} 15. fxe5 $1 $16 Qxe5 16. Qxe5 Nxe5 17. Be3) 15... h6 $11 {[%emt 0:04:50]} 16. Bh4 {[%emt 0:02:09] Hoping for fxe5.} Kf8 {[%emt 0:18:54]} 17. fxe5 {[%emt 0:05:29]} Nxe5 {[%emt 0:00:48] And now ...g5 would win.} 18. g4 $36 {[%emt 0:01:02][%mdl 2048] White is pushing.} (18. Rhf1 {with more complications.} Nfd7 19. g4 b4 20. axb4 Rxb4 21. Bg3) 18... Nfd7 {[%emt 0:02:13]} (18... Nexg4 $2 19. Bg3 e5 20. h3 $18) (18... Ng6 $14 19. Bxf6 gxf6) 19. Bg3 {[%emt 0:09:02][%cal Od1d7] Threatens to win with Rxd7! A strong pair of Bishops.} f6 {[%emt 0:00:27]} 20. Rhf1 {[%emt 0:01:15]} (20. Rd4 $1 $16) 20... Kg8 {[%emt 0:03:14]} (20... Ke7 $1 $11) 21. h4 $16 {[%emt 0:07:04][%cal Og4g5] g5! is the strong threat.} Qc4 {[%emt 0:08:36]} (21... b4 $16 22. axb4 Rxb4) 22. Qxc4 {[%emt 0:06:53]} (22. Qf2 $18 {and White stays clearly on top. aiming for Bxe5.} Nxg4 23. Qg1) 22... Nxc4 {[%emt 0:00:34] [#]} 23. Rfe1 {[%emt 0:04:39][%cal Bf1e1,Be1e6,Be6c6][%mdl 32] Prevents Ne3.} Bb7 {[%emt 0:08:06]} 24. Bxb7 {[%emt 0:06:43]} ({Much worse is} 24. Rxd7 $6 Bxg2 25. Bc7 Rb7 $11) 24... Rxb7 {[%emt 0:00:05]} 25. Rxe6 {[%emt 0:00:03]} Ndb6 {[%emt 0:08:20]} (25... Kh7 $142 26. Ne4 (26. Rxa6 Rc8 $16) 26... Rf8 27. Rxa6 Rc8) 26. b3 $18 {[%emt 0:03:44]} Kf7 {[%emt 0:01:04] [#]} 27. Rc6 {[%emt 0:02:28]} Na5 {[%emt 0:08:18]} (27... Ne3 {was called for.}) 28. Rc7+ {[%emt 0:01:30]} Kg6 {[%emt 0:00:07]} 29. h5+ {[%emt 0:03:59]} Kh7 {[%emt 0:01:32]} 30. Rxb7 {[%emt 0:07:14]} Nxb7 {[%emt 0:00:07]} 31. Bf2 {[%emt 0:00:26]} Nc8 {[%emt 0:09:28]} (31... Rc8 {was necessary.} 32. Nxb5 (32. Bxb6 Rxc3 33. Rd5 Rc6 $14) 32... axb5) 32. Rd7 {[%emt 0:00:17] White is clearly winning.} Nbd6 {[%emt 0:02:45]} 33. Bc5 {[%emt 0:00:19]} Ne8 {[%emt 0:00:14]} 34. Nd5 {[%emt 0:00:17]} Rg8 {[%emt 0:00:17]} 35. Kd2 {[%emt 0:01:35]} Kh8 {[%emt 0:01:29]} 36. Ke3 {[%emt 0:00:36]} a5 {[%emt 0:00:47]} 37. Kf4 {[%emt 0:00:05]} Kh7 {[%emt 0:00:30]} 38. Kf5 {[%emt 0:00:13]} a4 {[%emt 0:00:46]} 39. b4 {[%emt 0:00:04]} Ned6+ {[%emt 0:01:28]} 40. Bxd6 {[%emt 0:00:46]} Nxd6+ {[%emt 0:00:08]} 41. Rxd6 {[%emt 0:30:08][%cal Oc2c4] White wants to mate with c4!} Rc8 {[%emt 0:30:05]} 42. Rd7 {[%emt 0:00:14] Weighted Error Value: White=0.16 (very precise) /Black=0.51} 1-0

[Event "55th Biel Festival MTO 2022"]
[Site "Biel"]
[Date "2022.07.20"]
[Round "7.21"]
[White "Pavlovic Milos"]
[Black "Schnepp Gunnar"]
[Result "1-0"]
[ECO "A05"]
[WhiteElo "2461"]
[BlackElo "2265"]
[Annotator "TA"]
[PlyCount "71"]
[EventDate "2022.07.13"]
[EventType "swiss"]
[EventCountry "SUI"]
[SourceTitle "playchess.com"]
[Source "ChessBase"]
[SourceQuality "1"]
[TimeControl "40/5400+30:1800+30"]

{[%evp 17,71,0,0,-14,0,0,0,0,0,0,0,-8,-12,-39,-38,-45,-34,-58,-33,-40,-49,-54,0,-10,-6,-6,-8,-8,63,52,48,57,63,63,63,63,63,62,91,91,89,63,63,63,72,72,72,72,76,72,76,72,77,78,588,577]} 1. Nf3 {[%emt 0:00:10]} Nf6 {[%emt 0:00:08]} 2. g3 {[%emt 0:00:09]} d5 {[%emt 0:00:50]} 3. Bg2 {[%emt 0:00:07]} c5 {[%emt 0:00:51]} 4. O-O {[%emt 0:00:30]} g6 {[%emt 0:01:33]} 5. d3 {[%emt 0:17:58]} Bg7 {[%emt 0:00:42]} 6. Nc3 {[%emt 0:01:03]} Nc6 {[%emt 0:07:52]} 7. e4 {[%emt 0:03:58]} O-O {[%emt 0:06:09]} 8. exd5 {[%emt 0:45:05]} Nxd5 {[%emt 0:01:34]} 9. Nxd5 {[%emt 0:00:42]} Qxd5 {[%emt 0:00:08]} 10. c3 {[%emt 0:03:53] [#] A05: Réti Opening: 1 Nf3 Nf6.} Qh5 $146 {[%emt 0:15:16]} ({Predecessor:} 10... Qd6 11. Be3 Bf5 12. d4 cxd4 13. Nxd4 Nxd4 14. cxd4 Rfd8 15. Bxb7 Rab8 16. Bg2 Rxb2 {0-1 (32) Cano,L (2240)-Arango Arenas,J (2126) Medellin 2014}) 11. Ng5 {[%emt 0:00:14] [#] Strongly threatening Bf3.} Qxd1 {[%emt 0:03:56]} 12. Rxd1 {[%emt 0:00:36] The position is equal.} Bd7 {[%emt 0:03:52]} 13. Be3 {[%emt 0:00:50]} b6 {[%emt 0:00:39]} 14. Nf3 {[%emt 0:04:36]} Rad8 {[%emt 0:02:53]} 15. Rac1 {[%emt 0:00:28]} e5 {[%emt 0:10:08]} 16. a3 {[%emt 0:02:01]} Ne7 {[%emt 0:16:42]} 17. d4 {[%emt 0:07:14]} Ba4 {[%emt 0:12:11]} 18. Re1 {[%emt 0:01:39][%cal Bd1e1,Be1e7,Be7a7,Ba7b7,Bb7b6,Bb6c6,Bc6c5][%mdl 32]} exd4 {[%emt 0:00:57]} 19. Bg5 {[%emt 0:04:37] [#]} dxc3 $1 {[%emt 0:01:41]} 20. bxc3 {[%emt 0:00:30]} ({But not} 20. Bxe7 $2 cxb2 21. Bxd8 (21. Rb1 $2 c4 $19) 21... bxc1=R 22. Rxc1 Rxd8 $19) (20. b3 Bxb3) 20... f6 {[%emt 0:01:13]} 21. Rxe7 {[%emt 0:00:05]} fxg5 {[%emt 0:00:13]} 22. Rxa7 {[%emt 0:00:22]} Rd1+ {[%emt 0:00:56]} (22... g4 $11 23. Rxa4 gxf3) 23. Rxd1 $14 {[%emt 0:00:08]} Bxd1 {[%emt 0:00:02] This bishop pair is nice.} 24. Nxg5 {[%emt 0:00:08]} Bb3 {[%emt 0:02:27] Inhibits Bd5+.} 25. Rb7 {[%emt 0:00:49]} Bxc3 {[%emt 0:03:14]} 26. Rxb6 {[%emt 0:00:07]} Bc4 {[%emt 0:01:12]} 27. Rc6 {[%emt 0:04:09]} Bd4 {[%emt 0:00:32]} 28. Nf3 {[%emt 0:00:04]} Rb8 {[%emt 0:00:24] ( -> ...Rb1+)} 29. Bf1 {[%emt 0:01:51]} Bxf1 {[%emt 0:03:57]} 30. Kxf1 {[%emt 0:00:02][%mdl 4096] Endgame KRB-KRN} ({Don't blunder} 30. Nxd4 $2 Rb1 31. h4 (31. Rc8+ $2 Kf7 $19) 31... cxd4 $19) 30... Bb2 {[%emt 0:00:46]} 31. Rxc5 {[%emt 0:00:59] Threatens to win with a4.} Bxa3 {[%emt 0:00:03]} 32. Rc7 {[%emt 0:00:05]} Bd6 {[%emt 0:01:01]} 33. Rd7 {[%emt 0:00:06]} Bc5 {[%emt 0:00:38]} 34. Ng5 {[%emt 0:00:20]} Rb1+ {[%emt 0:02:18]} 35. Kg2 {[%emt 0:00:02] And now Rd8+ would win.} h6 $2 {[%emt 0:00:21][%mdl 8192]} (35... Re1 $16 {stays breathing.}) 36. Rd8+ {[%emt 0:00:16] Weighted Error Value: White=0.03 (flawless) /Black=0.36} 1-0

[Event "55th Biel Festival MTO 2022"]
[Site "Biel"]
[Date "2022.07.20"]
[Round "7.22"]
[White "Unuk, Laura"]
[Black "Panjwani Raja"]
[Result "0-1"]
[ECO "E73"]
[WhiteElo "2340"]
[BlackElo "2450"]
[Annotator "TA"]
[PlyCount "76"]
[EventDate "2022.07.13"]
[EventType "swiss"]
[EventCountry "SUI"]
[SourceTitle "playchess.com"]
[Source "ChessBase"]
[SourceQuality "1"]
[TimeControl "40/5400+30:1800+30"]

{[%evp 10,76,51,41,46,38,23,35,28,37,57,46,60,52,73,70,69,46,44,-49,-60,-42,-39,-52,-41,-69,-83,-197,-191,-218,-218,-213,-127,-117,-100,-121,-119,-96,-115,-93,-39,-58,-62,-69,-70,-93,-106,-283,-308,-266,-283,-265,-125,-282,-198,-380,-354,-946,-916,-840,-793,-29985,-1830,-29980,-29981,-29973,-29973,-5220,-4686]} 1. d4 {[%emt 0:00:07]} Nf6 {[%emt 0:00:15]} 2. c4 {[%emt 0:00:12]} g6 {[%emt 0:00:09]} 3. Nc3 {[%emt 0:00:41]} Bg7 {[%emt 0:00:08]} 4. e4 {[%emt 0:00:08]} d6 {[%emt 0:00:05]} 5. Be2 {[%emt 0:00:43]} O-O {[%emt 0:00:09]} 6. Be3 {[%emt 0:00:05]} Na6 {[%emt 0:00:10] E73: King's Indian: Averbakh Variation without 6...c5.} 7. h3 {[%emt 0:16:41]} e5 {[%emt 0:03:25]} 8. d5 {[%emt 0:00:20]} Nc5 {[%emt 0:03:57] White is slightly better.} 9. Qc2 {[%emt 0:03:29] [#]} Ne8 $146 {[%emt 0:09:34]} ({Predecessor:} 9... a5 10. g4 c6 11. Nf3 cxd5 12. cxd5 Re8 13. Nd2 b6 14. a3 Re7 15. g5 Nh5 16. Bxh5 gxh5 17. Bxc5 bxc5 {1-0 (52) Sarana,A (2685)-Ganerdene,S (2419) Chess.com INT 2022}) 10. b4 {[%emt 0:18:58]} Na6 {[%emt 0:00:36]} 11. Rb1 {[%emt 0:00:07]} f5 {[%emt 0:00:19]} 12. Nf3 {[%emt 0:02:25]} c5 {[%emt 0:20:36]} 13. dxc6 {[%emt 0:14:39]} bxc6 {[%emt 0:00:08]} 14. c5 {[%emt 0:05:42]} (14. b5 $14 f4 15. Bc1 cxb5 16. cxb5) 14... fxe4 $1 $15 {[%emt 0:04:45]} ({But not} 14... f4 15. Bd2 $14) 15. Nxe4 {[%emt 0:05:23] And now cxd6 would win.} d5 {[%emt 0:01:47]} 16. Ng3 {[%emt 0:00:10]} Nac7 {[%emt 0:06:15][%cal Ba6c7,Bc7e6,Be6f4,Bf4e2][%mdl 32]} 17. h4 {[%emt 0:03:56]} Ne6 {[%emt 0:10:15]} 18. Rd1 {[%emt 0:03:20] [#]} (18. h5 $17 e4 19. Nxe4 dxe4 20. Qxe4) 18... Nf4 $1 $19 {[%emt 0:06:43]} 19. Kf1 {[%emt 0:01:02]} Nxe2 {[%emt 0:03:14]} 20. Nxe2 {[%emt 0:06:14]} Nc7 {[%emt 0:02:12]} (20... Bg4 $19 21. h5 gxh5) 21. h5 $17 {[%emt 0:00:26]} Qe8 {[%emt 0:01:33]} 22. hxg6 {[%emt 0:06:23]} Qxg6 {[%emt 0:00:24]} 23. Qxg6 {[%emt 0:01:08]} hxg6 {[%emt 0:00:06]} 24. Bh6 {[%emt 0:01:09]} Bxh6 {[%emt 0:04:22]} ({Black should play} 24... Ba6 $17 25. Ke1 (25. Bxg7 Kxg7 26. a3 Rf5 $17) 25... Rab8) 25. Rxh6 $15 {[%emt 0:00:06]} Kg7 {[%emt 0:00:09]} 26. Rh4 {[%emt 0:01:00]} Ba6 {[%emt 0:04:26]} 27. Ke1 {[%emt 0:05:17]} ({Wrong is} 27. Nxe5 $2 Bxe2+ 28. Kxe2 Rae8 $19) 27... Rae8 {[%emt 0:03:08]} 28. Kd2 $2 {[%emt 0:02:05]} (28. a4 $17) 28... e4 $19 {[%emt 0:02:19]} 29. Nfd4 {[%emt 0:00:05]} Rxf2 {[%emt 0:00:35] Strongly threatening ...e3+.} 30. Ke3 {[%emt 0:00:21]} Rxg2 {[%emt 0:05:31] Chess con chili.} (30... Bxe2 $19 {has better winning chances.} 31. Rdh1 {[#]} Nb5 $1 32. Nxb5 Rxg2 33. Rh7+ Kf6) 31. Rdh1 {[%emt 0:00:06]} (31. Nf4 $17 Rg3+ 32. Kf2) 31... Ne6 {[%emt 0:01:25]} 32. Rh7+ $2 {[%emt 0:01:05]} (32. Nxe6+ {is the only way for White.} Rxe6 33. Nd4) 32... Kf6 {[%emt 0:00:02] Hoping for ...Bxe2.} 33. Rxa7 $2 {[%emt 0:02:51]} (33. Rf1+ Kg5 34. b5 Nxd4 35. Nxd4 Rg3+ 36. Kf2 Bxb5 37. Kxg3 Bxf1 38. Kf2) 33... Bxe2 {[%emt 0:00:22]} 34. Nxe2 {[%emt 0:00:12]} Ke5 {[%emt 0:00:24] White must now prevent ...d4+.} 35. Rd7 {[%emt 0:00:51]} d4+ {[%emt 0:00:56]} (35... Ra8 $142 36. a4 Rxa4 37. Rdh7 Ra2 38. R1h5+ Kf6 39. Rf5+ gxf5 40. Rh6+ Kf7 41. Rxe6 Raxe2+ 42. Kd4 Kxe6 43. b5 Rg3 44. bxc6 Rd3#) 36. Nxd4 {[%emt 0:00:20]} Nxd4 {[%emt 0:00:06]} 37. Rxd4 {[%emt 0:00:11]} Rg3+ {[%emt 0:00:04]} 38. Kf2 {[%emt 0:00:04]} Rf3+ {[%emt 0:00:04] Weighted Error Value: White=0.87/Black=0.32} 0-1